bitfinex-derivatives/quotes_SOLF0:USTF0_20260210
["timestamp","ask_amount","ask_price","bid_price","bid_amount"]
[1770748721282,3.76982982,83.529,83.472,3.73543379]
[1770748722271,36.11,83.578,83.488,3.73543379]
[1770748722272,3.76982982,83.544,83.488,3.73543379]
[1770748723480,3.76982982,83.543,83.479,3.73543379]
[1770748723876,10.7796,83.537,83.491,10.7854]
[1770748725475,3.76982982,83.543,83.48,3.73543379]
[1770748725784,3.76982982,83.543,83.487,3.73543379]
[1770748726171,3.76982982,83.56,83.521,10.7815]
[1770748726370,3.76982982,83.56,83.509,3.73543379]
[1770748726772,10.7786,83.545,83.509,10.7831]
[1770748727080,3.76982982,83.544,83.488,3.73543379]
[1770748727681,10.7789,83.543,83.502,10.784]
[1770748728575,3.76982982,83.534,83.493,10.7852]
[1770748729081,10.777,83.557,83.512,10.7827]
[1770748729276,10.777,83.557,83.509,3.73543379]
[1770748729277,3.76982982,83.569,83.493,3.73543379]
[1770748729874,10.7777,83.552,83.504,10.7837]
[1770748730070,3.76982982,83.569,83.504,10.7837]
[1770748731772,10.7786,83.545,83.504,10.7837]
[1770748732679,10.7786,83.545,83.497,10.7847]
[1770748732984,3.67118593,83.54,83.498,3.89586606]
[1770748733288,3.78557924,83.529,83.493,10.7851]
[1770748734081,3.78557924,83.543,83.491,3.89586606]
[1770748734287,3.67118593,83.55,83.501,3.89586606]
[1770748734582,3.67118593,83.55,83.512,3.89586606]
[1770748734781,3.67118593,83.56,83.512,3.89586606]
[1770748735089,3.67118593,83.56,83.513,3.89586606]
[1770748735285,3.67118593,83.56,83.522,10.7814]
[1770748737585,3.78557924,83.57,83.526,10.7809]
[1770748737786,7.45676517,83.57,83.526,10.7809]
[1770748738085,3.67118593,83.56,83.526,10.7809]
[1770748738587,3.67118593,83.56,83.533,10.78]
[1770748738986,3.78557924,83.57,83.533,10.78]
[1770748739386,3.78557924,83.57,83.539,10.7792]
[1770748739586,3.78557924,83.57,83.524,3.89586606]
[1770748740187,3.78557924,83.568,83.525,10.781]
[1770748740786,3.78557924,83.551,83.503,11.13751454]
[1770748741090,3.78557924,83.549,83.487,11.13751454]
[1770748741282,3.78557924,83.537,83.494,10.785]
[1770748741483,3.78557924,83.553,83.506,11.13751454]
[1770748741679,9.82739097,83.57,83.524,3.89586606]
[1770748741884,3.78557924,83.586,83.532,3.89586606]
[1770748742189,3.78557924,83.586,83.533,3.89586606]
[1770748742388,3.78557924,83.601,83.537,3.89586606]
[1770748742687,3.78557924,83.614,83.56,3.89586606]
[1770748743191,3.78557924,83.614,83.579,10.7741]
[1770748743784,10.7682,83.626,83.579,10.7741]
[1770748743989,3.78557924,83.645,83.579,3.89586606]
[1770748744580,3.78557924,83.645,83.598,10.7716]
[1770748746688,3.78557924,83.64,83.589,10.7728]
[1770748747292,3.78557924,83.64,83.597,10.7718]
[1770748752003,3.78557924,83.64,83.587,10.773]
[1770748753194,3.78557924,83.64,83.594,10.7721]
[1770748753390,9.81266054,83.65,83.594,3.89586606]
[1770748753588,3.78557924,83.655,83.594,3.89586606]
[1770748754796,3.78557924,83.651,83.602,10.7711]
[1770748755294,3.78557924,83.651,83.609,10.7702]
[1770748755495,3.78557924,83.684,83.6,9.81266054]
[1770748755700,3.78557924,83.669,83.592,3.89586606]
[1770748756300,3.78557924,83.651,83.592,3.89586606]
[1770748758103,3.78557924,83.679,83.619,3.89586606]
[1770748758900,3.65997076,83.67,83.629,10.7677]
[1770748759103,3.78557924,83.679,83.63,7.55583682]
[1770748759397,3.65997076,83.67,83.63,3.89586606]
[1770748760004,3.65997076,83.66,83.616,10.7693]
[1770748760296,3.65997076,83.66,83.611,3.87120237]
[1770748760297,3.65997076,83.65,83.611,3.87120237]
[1770748760503,3.65997076,83.65,83.612,10.7698]
[1770748760904,3.81064405,83.66,83.612,10.7698]
[1770748761106,3.81064405,83.658,83.612,10.7698]
[1770748761307,3.81064405,83.658,83.602,10.7712]
[1770748761903,3.81064405,83.658,83.609,10.7702]
[1770748762906,3.81064405,83.658,83.601,10.7712]
[1770748763404,3.98649911,83.627,83.581,10.7738]
[1770748764703,3.98649911,83.627,83.576,3.87586142]
[1770748765410,3.98649911,83.627,83.578,10.7742]
[1770748765805,3.98649911,83.627,83.56,3.9174156]
[1770748766208,3.98649911,83.627,83.573,3.9174156]
[1770748766410,3.98649911,83.646,83.573,3.9174156]
[1770748767611,3.98649911,83.646,83.594,3.89252513]
[1770748767810,3.98649911,83.669,83.594,3.89252513]
[1770748768715,10.7653,83.648,83.605,10.7707]
[1770748768917,10.7653,83.648,83.605,14.66322513]
[1770748769412,10.7653,83.648,83.605,3.89252513]
[1770748769616,3.98649911,83.647,83.589,3.86255617]
[1770748769912,3.98649911,83.647,83.574,3.86255617]
[1770748770115,10.7689,83.62,83.575,10.7746]
[1770748771315,3.98649911,83.625,83.582,10.7736]
[1770748772116,3.98649911,83.631,83.574,3.86255617]
[1770748774819,3.98649911,83.621,83.559,3.85545767]
[1770748775817,14.75559911,83.619,83.572,10.775]
[1770748777224,3.98649911,83.638,83.573,3.84796751]
[1770748777423,3.98649911,83.649,83.573,3.84796751]
[1770748777623,3.98649911,83.649,83.581,3.84796751]
[1770748777829,3.98649911,83.665,83.602,3.84796751]
[1770748779224,3.98649911,83.641,83.57,3.75764516]
[1770748780527,3.98649911,83.624,83.574,10.7748]
[1770748781331,10.7689,83.62,83.58,10.7739]
[1770748781830,3.98649911,83.624,83.58,10.7739]
[1770748782635,14.75599911,83.615,83.57,3.75764516]
[1770748782829,10.7695,83.615,83.57,3.75764516]
[1770748783129,3.98649911,83.629,83.58,10.7739]
[1770748784231,10.7679,83.628,83.586,10.7731]
[1770748785333,10.7687,83.622,83.58,3.76653034]
[1770748785727,10.7687,83.622,83.581,10.7738]
[1770748787333,3.98649911,83.629,83.563,11.13751454]
[1770748787638,3.98649911,83.614,83.563,3.80123157]
[1770748788042,3.98649911,83.612,83.559,11.13751454]
[1770748788238,3.98649911,83.609,83.542,11.13751454]
[1770748788431,3.98649911,83.589,83.531,3.80123157]
[1770748788735,14.76119911,83.575,83.531,3.80123157]
[1770748790233,3.91852852,83.569,83.516,10.7822]
[1770748790633,3.91852852,83.569,83.498,11.13751454]
[1770748790935,3.91852852,83.557,83.499,10.7844]
[1770748791126,3.91852852,83.557,83.496,3.83092177]
[1770748791433,3.91852852,83.549,83.481,3.94716734]
[1770748791831,14.69782852,83.539,83.482,10.7866]
[1770748792038,14.69782852,83.539,83.483,3.94716734]
[1770748792839,14.69782852,83.539,83.489,10.7857]
[1770748793140,9.81754438,83.55,83.49,3.94916809]
[1770748793435,3.91852852,83.557,83.49,3.94916809]
[1770748793631,107.54,83.563,83.474,3.94916809]
[1770748793632,3.91852852,83.53,83.474,3.94916809]
[1770748794236,3.91852852,83.53,83.484,10.7864]
[1770748794944,3.91852852,83.552,83.485,3.94916809]
[1770748795833,10.7785,83.546,83.495,3.94012681]
[1770748796035,3.91852852,83.545,83.495,3.94012681]
[1770748796242,3.91852852,83.545,83.497,10.7847]
[1770748797037,10.7765,83.561,83.515,3.94012681]
[1770748797638,3.91852852,83.569,83.516,10.7822]
[1770748798040,3.91852852,83.569,83.481,3.85585658]
[1770748798741,3.91852852,83.547,83.498,10.7846]
[1770748799145,3.91852852,83.547,83.5,14.62450517]
[1770748799340,3.91852852,83.564,83.501,3.84020517]
[1770748800348,3.91852852,83.564,83.502,10.784]
[1770748800541,3.91852852,83.564,83.461,14.70852393]
[1770748800542,3.91852852,83.549,83.481,3.84020517]
[1770748801042,3.91852852,83.549,83.45,9.81754438]
[1770748801043,3.91852852,83.524,83.47,10.7881]
[1770748801237,3.91852852,83.54,83.471,3.70475061]
[1770748801641,3.91852852,83.54,83.486,3.70475061]
[1770748801842,21.5421,83.604,83.491,3.70475061]
[1770748801843,3.91852852,83.569,83.491,3.70475061]
[1770748802042,3.91852852,83.585,83.531,10.7802]
[1770748802243,3.91852852,83.585,83.524,3.70475061]
[1770748802841,3.91852852,83.606,83.548,3.70475061]
[1770748803342,3.91852852,83.606,83.562,10.7762]
[1770748803648,3.91852852,83.629,83.548,3.70475061]
[1770748804345,10.769,83.62,83.563,3.69727859]
[1770748804547,3.91852852,83.619,83.546,3.69727859]
[1770748804746,10.7715,83.6,83.549,10.778]
[1770748805048,3.91852852,83.589,83.514,99.17735598]
[1770748805248,3.91852852,83.589,83.515,3.65735598]
[1770748805442,14.69142852,83.589,83.536,10.7796]
[1770748805646,3.91852852,83.589,83.53,3.65735598]
[1770748805846,10.7715,83.6,83.541,3.65735598]
[1770748806246,3.91852852,83.599,83.541,3.65735598]
[1770748806443,3.91852852,83.599,83.525,3.65735598]
[1770748807444,3.91852852,83.599,83.51,9.81754438]
[1770748807445,10.7721,83.595,83.544,10.7786]
[1770748807845,3.91852852,83.594,83.54,3.64744534]
[1770748808351,3.91852852,83.594,83.542,14.42634534]
[1770748808645,3.91852852,83.594,83.543,3.64744534]
[1770748809752,3.91852852,83.594,83.551,10.7777]
[1770748811349,35.91,83.653,83.53,9.81754438]
[1770748811350,3.91852852,83.607,83.558,3.67952041]
[1770748811550,3.91852852,83.607,83.531,3.67952041]
[1770748812150,10.7709,83.604,83.557,10.777]
[1770748813153,3.91852852,83.607,83.565,10.7759]
[1770748813448,3.91852852,83.607,83.53,9.81754438]
[1770748813449,3.91852852,83.623,83.531,3.68013622]
[1770748813653,10.7728,83.59,83.54,10.7791]
[1770748814048,3.91852852,83.609,83.531,3.68013622]
[1770748814249,14.68912852,83.607,83.555,10.7771]
[1770748814849,10.7716,83.6,83.551,3.68013622]
[1770748815255,3.91852852,83.599,83.534,3.66256962]
[1770748816356,3.91852852,83.599,83.546,3.66256962]
[1770748817451,10.7706,83.607,83.562,10.7763]
[1770748819054,14.68812852,83.614,83.562,14.43187741]
[1770748820962,14.68812852,83.614,83.53,9.81754438]
[1770748820963,4.08558043,83.613,83.542,3.658544]
[1770748821861,4.08558043,83.613,83.53,9.81754438]
[1770748821862,10.7703,83.609,83.562,14.40780658]
[1770748822558,4.08558043,83.613,83.569,10.7754]
[1770748825462,3.99266165,83.609,83.562,14.40790658]
[1770748825661,3.99266165,83.609,83.562,10.7763]
[1770748826371,3.99266165,83.607,83.562,10.7763]
[1770748828670,3.99266165,83.607,83.568,10.7755]
[1770748829367,10.7668,83.636,83.592,3.60623527]
[1770748829566,3.99266165,83.635,83.592,3.60623527]
[1770748829972,3.99266165,83.652,83.592,3.60623527]
[1770748830164,10.7654,83.647,83.6,10.7714]
[1770748830369,10.7654,83.647,83.592,3.60623527]
[1770748830370,3.99266165,83.652,83.592,3.60623527]
[1770748830566,3.99266165,83.65,83.602,10.7712]
[1770748831675,3.99266165,83.638,83.564,3.57383345]
[1770748832371,3.99266165,83.638,83.56,9.81776508]
[1770748832372,3.99266165,83.649,83.589,3.57383345]
[1770748832875,3.99266165,83.639,83.594,10.7721]
[1770748834977,3.99266165,83.654,83.594,3.64276433]
[1770748835169,3.99266165,83.654,83.578,3.64741845]
[1770748835569,12.0,83.693,83.582,10.7737]
[1770748835570,3.99266165,83.634,83.582,10.7737]
[1770748835875,3.99266165,83.619,83.548,3.64741845]
[1770748836267,3.99266165,83.605,83.55,10.7778]
[1770748836471,3.99266165,83.605,83.548,3.64741845]
[1770748837276,9.81995521,83.62,83.563,3.74981799]
[1770748837468,3.99266165,83.619,83.563,3.74981799]
[1770748837669,3.99266165,83.619,83.53,9.81995521]
[1770748837670,3.99266165,83.619,83.538,3.74981799]
[1770748838381,14.76186165,83.618,83.562,3.74981799]
[1770748838677,3.99266165,83.617,83.562,3.74981799]
[1770748839279,3.99266165,83.617,83.568,10.7755]
[1770748839678,3.99266165,83.617,83.569,3.67711692]
[1770748839888,3.99266165,83.616,83.551,3.67711692]
[1770748840682,3.99266165,83.616,83.557,10.7769]
[1770748840683,10.7708,83.605,83.557,10.7769]
[1770748841082,3.99266165,83.604,83.557,10.7769]
[1770748841784,10.7715,83.6,83.551,3.67711692]
[1770748843479,3.99266165,83.595,83.537,3.67888694]
[1770748844198,10.7732,83.586,83.544,10.7786]
[1770748846284,10.7732,83.586,83.51,9.81995521]
[1770748846285,9.81995521,83.61,83.553,3.67858696]
[1770748846484,3.99266165,83.609,83.553,3.67858696]
[1770748847691,10.7721,83.596,83.553,3.67858696]
[1770748848190,3.99266165,83.595,83.535,14.74611426]
[1770748848393,9.81995521,83.61,83.51,9.81995521]
[1770748848394,3.99266165,83.609,83.543,3.6752464]
[1770748848984,3.99266165,83.597,83.548,10.7781]
[1770748849988,3.99266165,83.587,83.543,3.6752464]
[1770748850189,3.99266165,83.587,83.539,10.7792]
[1770748851385,10.7725,83.592,83.546,3.76721516]
[1770748851892,9.81995521,83.61,83.541,10.779]
[1770748851893,14.51996205,83.585,83.541,10.779]
[1770748853092,10.7725,83.592,83.549,10.778]
[1770748853690,10.7725,83.592,83.542,14.54601516]
[1770748853890,10.7729,83.589,83.542,14.54601516]
[1770748854290,10.7729,83.589,83.527,11.07086786]
[1770748854291,10.7729,83.589,83.543,3.76721516]
[1770748855786,10.7729,83.589,83.544,10.7786]
[1770748857594,3.74656205,83.586,83.521,14.83808302]
[1770748857794,3.74656205,83.586,83.522,3.76721516]
[1770748857997,3.74656205,83.586,83.531,3.76721516]
[1770748858587,3.74656205,83.586,83.547,10.7782]
[1770748859193,3.74656205,83.6,83.544,3.71941441]
[1770748860999,3.74656205,83.6,83.521,95.5]
[1770748861000,10.774,83.581,83.537,10.7795]
[1770748861197,3.74656205,83.583,83.527,3.71941441]
[1770748861591,10.774,83.581,83.54,10.7791]
[1770748861796,3.74656205,83.58,83.54,10.7791]
[1770748861992,3.74656205,83.58,83.527,3.71941441]
[1770748862600,3.74656205,83.58,83.54,10.779]
[1770748862796,10.7731,83.588,83.527,3.71941441]
[1770748863899,3.74656205,83.594,83.54,3.72971346]
[1770748864400,10.7732,83.587,83.54,3.72971346]
[1770748864701,3.74656205,83.594,83.54,3.72971346]
[1770748865799,10.7731,83.588,83.551,10.7777]
[1770748867100,10.7731,83.588,83.544,10.7786]
[1770748867506,3.74656205,83.593,83.54,3.72971346]
[1770748869799,3.74656205,83.59,83.548,10.7781]
[1770748870306,3.74656205,83.588,83.541,10.7789]
[1770748870505,3.74656205,83.588,83.54,3.72971346]
[1770748871706,10.7732,83.587,83.547,10.7782]
[1770748873608,14.51976205,83.587,83.547,10.7782]
[1770748874897,10.771,83.603,83.557,10.7769]
[1770748875109,10.771,83.603,83.557,3.61435012]
[1770748875110,3.74656205,83.599,83.557,3.61435012]
[1770748875410,3.74656205,83.589,83.543,3.61425062]
[1770748875707,7.41378175,83.58,83.531,3.61425062]
[1770748876604,3.74656205,83.58,83.531,3.61425062]
[1770748876811,3.6672197,83.59,83.552,10.7776]
[1770748877204,3.6672197,83.59,83.545,3.61425062]
[1770748877408,7.41378175,83.59,83.545,3.61425062]
[1770748877805,10.7729,83.589,83.551,10.7776]
[1770748878211,3.6672197,83.6,83.552,3.5745119]
[1770748878402,3.74656205,83.597,83.539,3.5745119]
[1770748878603,3.74656205,83.579,83.526,14.73610808]
[1770748878802,3.74656205,83.579,83.52,3.6672197]
[1770748878803,3.74656205,83.579,83.521,11.16159618]
[1770748879206,3.74656205,83.569,83.523,11.16159618]
[1770748879606,3.74656205,83.568,83.523,10.7813]
[1770748879814,3.74656205,83.559,83.523,10.7813]
[1770748883617,3.98564563,83.558,83.515,10.7823]
[1770748883916,3.98564563,83.558,83.513,3.5745119]
[1770748884815,3.98564563,83.558,83.521,10.7816]
[1770748885718,3.98564563,83.547,83.506,11.16159618]
[1770748885907,3.98564563,83.547,83.492,3.65533693]
[1770748886418,3.98564563,83.547,83.497,3.65533693]
[1770748886711,3.98564563,83.547,83.5,3.65533693]
[1770748887212,3.98564563,83.547,83.502,3.61574461]
[1770748887408,3.98564563,83.547,83.508,14.39894461]
[1770748888916,3.98564563,83.547,83.5,10.7843]
[1770748889518,3.98564563,83.547,83.504,10.7838]
[1770748889712,3.98564563,83.547,83.501,3.61937167]
[1770748890116,3.98564563,83.547,83.503,3.61937167]
[1770748891411,9.82888723,83.56,83.512,3.60237703]
[1770748891412,3.98564563,83.559,83.512,3.60237703]
[1770748892816,14.76254563,83.558,83.512,3.60237703]
[1770748893011,3.98564563,83.557,83.512,3.60237703]
[1770748893207,3.98564563,83.557,83.496,3.63974163]
[1770748893712,3.98564563,83.556,83.508,14.42294163]
[1770748894511,14.76314563,83.553,83.508,3.63974163]
[1770748895820,10.778,83.55,83.508,3.63974163]
[1770748896611,9.82888723,83.56,83.495,3.66725162]
[1770748896612,3.98564563,83.542,83.495,3.66725162]
[1770748897020,3.98564563,83.555,83.497,3.66725162]
[1770748897410,10.7782,83.548,83.497,3.66725162]
[1770748897721,3.98564563,83.555,83.508,3.66733628]
[1770748898721,9.83444124,83.56,83.508,3.66733628]
[1770748898722,3.98564563,83.554,83.508,3.66733628]
[1770748899316,3.98564563,83.554,83.513,10.7825]
[1770748901717,3.98564563,83.554,83.476,95.52]
[1770748901718,3.98564563,83.552,83.503,10.7839]
[1770748902119,14.76504563,83.538,83.495,3.64976061]
[1770748902422,3.98564563,83.537,83.495,3.64976061]
[1770748902927,3.67193518,83.53,83.495,3.64976061]
[1770748903124,3.67193518,83.53,83.493,10.7852]
[1770748905119,3.98564563,83.529,83.483,10.7864]
[1770748906428,3.98564563,83.527,83.483,10.7864]
[1770748907124,3.67193518,83.52,83.483,10.7864]
[1770748907326,3.67193518,83.53,83.491,3.91744972]
[1770748907523,3.98564563,83.539,83.491,3.91744972]
[1770748907725,3.67193518,83.53,83.491,3.91744972]
[1770748908815,14.45253518,83.53,83.491,3.91744972]
[1770748910727,10.7806,83.53,83.491,3.91744972]
[1770748911226,14.50509571,83.538,83.493,10.7852]
[1770748911426,7.39763089,83.53,83.491,3.91744972]
[1770748912929,7.39763089,83.53,83.491,14.70284972]
[1770748913135,10.7809,83.527,83.491,3.91744972]
[1770748913336,14.50659571,83.527,83.491,3.91744972]
[1770748913526,3.72569571,83.526,83.471,3.97238562]
[1770748913826,7.39763089,83.52,83.471,3.97238562]
[1770748914025,7.39763089,83.52,83.47,3.67193518]
[1770748914026,35.91,83.562,83.456,11.16159618]
[1770748914027,3.72569571,83.508,83.456,11.16159618]
[1770748914217,3.67193518,83.49,83.453,3.97238562]
[1770748914417,3.72569571,83.499,83.453,3.97238562]
[1770748914418,3.67193518,83.48,83.453,3.97238562]
[1770748914623,3.67193518,83.48,83.431,3.97238562]
[1770748914821,3.67193518,83.47,83.431,3.97238562]
[1770748915225,3.67193518,83.47,83.393,95.56]
[1770748915226,3.67193518,83.49,83.441,4.00860158]
[1770748916829,3.67193518,83.49,83.453,10.7903]
[1770748917224,3.67193518,83.49,83.441,4.00860158]
[1770748917634,3.67193518,83.49,83.445,10.7914]
[1770748919128,3.67193518,83.48,83.441,4.00860158]
[1770748919436,21.5613,83.529,83.427,4.06548077]
[1770748919437,3.67193518,83.47,83.427,4.06548077]
[1770748920034,7.39763089,83.47,83.427,4.06548077]
[1770748920232,3.72569571,83.469,83.427,4.06548077]
[1770748920438,3.72569571,83.469,83.428,10.7936]
[1770748921134,3.67193518,83.46,83.428,10.7936]
[1770748921533,3.67193518,83.46,83.42,10.7946]
[1770748921838,3.67193518,83.45,83.42,10.7946]
[1770748922234,3.67193518,83.47,83.427,10.7937]
[1770748922735,3.67193518,83.48,83.431,4.05426552]
[1770748923136,3.67193518,83.48,83.442,10.7918]
[1770748923525,3.67193518,83.48,83.431,4.05426552]
[1770748924035,7.39763089,83.48,83.431,4.05426552]
[1770748924536,7.39763089,83.48,83.44,10.792]
[1770748925635,3.67193518,83.47,83.433,10.793]
[1770748926025,3.67193518,83.47,83.431,4.05426552]
[1770748926226,3.72569571,83.469,83.416,4.00710457]
[1770748926432,3.67193518,83.45,83.416,4.00710457]
[1770748927031,7.39763089,83.46,83.416,4.00710457]
[1770748927738,7.39763089,83.46,83.418,10.7949]
[1770748927932,3.72569571,83.459,83.418,10.7949]
[1770748929227,7.39763089,83.44,83.38,11.15341672]
[1770748929435,3.67193518,83.43,83.381,4.04038267]
[1770748929931,3.72569571,83.439,83.396,4.04038267]
[1770748930736,3.72569571,83.439,83.399,10.7974]
[1770748934241,3.72569571,83.439,83.396,4.04038267]
[1770748935741,3.72569571,83.439,83.399,10.7974]
[1770748936738,3.72569571,83.452,83.406,4.01107397]
[1770748937746,3.72569571,83.452,83.418,10.7949]
[1770748938240,3.67193518,83.45,83.418,10.7949]
[1770748938743,3.67193518,83.45,83.41,10.7959]
[1770748938943,3.67193518,83.45,83.406,4.01107397]
[1770748939145,3.67193518,83.45,83.378,21.6003]
[1770748939146,10.7897,83.459,83.411,4.00885664]
[1770748939345,3.67193518,83.46,83.411,4.00885664]
[1770748939541,3.72569571,83.485,83.423,4.00885664]
[1770748939749,3.72569571,83.485,83.431,4.00885664]
[1770748939948,7.76379892,83.48,83.431,4.00885664]
[1770748940149,4.09186374,83.479,83.436,10.7925]
[1770748940343,3.67193518,83.47,83.436,10.7925]
[1770748941144,4.09186374,83.479,83.443,10.7917]
[1770748941746,4.09186374,83.479,83.435,10.7926]
[1770748942345,3.67193518,83.47,83.435,10.7926]
[1770748942654,3.67193518,83.48,83.431,4.00885664]
[1770748943151,3.82293714,83.479,83.436,4.05268246]
[1770748943654,7.49487232,83.46,83.421,4.05268246]
[1770748944055,3.82293714,83.459,83.412,10.7956]
[1770748944853,3.67193518,83.44,83.393,4.05268246]
[1770748945055,7.49487232,83.44,83.393,4.05268246]
[1770748945450,3.67193518,83.44,83.401,4.12744882]
[1770748945954,7.49487232,83.44,83.394,10.7979]
[1770748946148,95.64,83.464,83.373,4.12744882]
[1770748946149,3.82293714,83.429,83.373,4.12744882]
[1770748946348,3.67193518,83.42,83.373,4.12744882]
[1770748947356,14.61783714,83.419,83.373,4.12744882]
[1770748948055,3.67193518,83.41,83.373,4.12744882]
[1770748948459,10.7965,83.406,83.36,3.67193518]
[1770748948757,3.67193518,83.4,83.358,14.93014882]
[1770748949057,10.7965,83.406,83.358,14.93014882]
[1770748949559,3.67193518,83.4,83.358,4.12744882]
[1770748951657,10.7977,83.397,83.358,4.12744882]
[1770748951859,35.91,83.442,83.343,4.12744882]
[1770748951860,3.67193518,83.39,83.343,4.12744882]
[1770748952451,3.82293714,83.379,83.33,4.12744882]
[1770748953764,3.82293714,83.379,83.332,4.12744882]
[1770748954563,3.67193518,83.39,83.341,4.12744882]
[1770748954953,3.67193518,83.38,83.341,4.12744882]
[1770748956353,3.67193518,83.39,83.343,4.12744882]
[1770748956962,3.6844062,83.39,83.343,4.12744882]
[1770748957859,3.6844062,83.39,83.352,10.8034]
[1770748958258,3.6844062,83.39,83.343,4.12744882]
[1770748958663,3.6844062,83.39,83.35,10.8036]
[1770748959264,10.797,83.403,83.35,10.8036]
[1770748959265,3.6844062,83.38,83.35,10.8036]
[1770748959458,3.82293714,83.389,83.35,10.8036]
[1770748959657,3.6844062,83.38,83.33,3.6844062]
[1770748959869,3.6844062,83.37,83.329,4.12744882]
[1770748960372,3.6844062,83.37,83.333,10.8059]
[1770748962366,3.6844062,83.36,83.315,4.12744882]
[1770748963770,3.82293714,83.369,83.325,10.807]
[1770748963972,3.82293714,83.369,83.321,4.12744882]
[1770748964768,3.6844062,83.38,83.325,4.12744882]
[1770748965165,7.50734334,83.38,83.325,4.12744882]
[1770748965675,7.50734334,83.38,83.327,4.12744882]
[1770748965974,3.6844062,83.37,83.327,4.12744882]
[1770748968480,7.50734334,83.37,83.327,4.12744882]
[1770748969283,7.50734334,83.37,83.329,4.12744882]
[1770748970681,7.50734334,83.37,83.332,10.806]
[1770748971083,7.50734334,83.37,83.329,4.12744882]
[1770748971585,7.50734334,83.37,83.331,10.8062]
[1770748971783,18.30864334,83.37,83.331,10.8062]
[1770748971984,18.30864334,83.37,83.329,4.12744882]
[1770748972985,4.10656256,83.369,83.329,4.12744882]
[1770748973485,14.4857062,83.37,83.331,3.76093222]
[1770748973684,3.6844062,83.37,83.331,3.76093222]
[1770748974384,4.10656256,83.388,83.342,3.76093222]
[1770748974683,3.6844062,83.37,83.331,10.8062]
[1770748975783,4.10656256,83.379,83.335,14.56663222]
[1770748975974,4.10656256,83.379,83.336,3.76093222]
[1770748976174,3.6844062,83.38,83.336,3.76093222]
[1770748976882,4.10656256,83.379,83.336,3.76093222]
[1770748977684,10.8006,83.374,83.336,3.76093222]
[1770748978578,4.10656256,83.379,83.342,10.8047]
[1770748978777,4.10656256,83.399,83.351,3.76093222]
[1770748979487,4.10656256,83.399,83.354,10.8032]
[1770748980191,14.90406256,83.399,83.351,3.76093222]
[1770748980384,3.6844062,83.38,83.341,3.76093222]
[1770748980887,10.799,83.387,83.342,10.8048]
[1770748981888,3.6844062,83.38,83.342,10.8048]
[1770748982391,3.6844062,83.38,83.341,3.76093222]
[1770748982591,4.10656256,83.379,83.33,3.6844062]
[1770748982779,3.6844062,83.37,83.327,3.76093222]
[1770748983188,3.6844062,83.35,83.301,3.76093222]
[1770748984688,14.4882062,83.35,83.31,10.8088]
[1770748985082,14.4882062,83.35,83.301,3.76093222]
[1770748985083,4.10656256,83.359,83.301,3.76093222]
[1770748986198,10.8029,83.357,83.31,3.76093222]
[1770748986786,10.8037,83.351,83.31,3.76093222]
[1770748986989,3.6844062,83.36,83.31,3.76093222]
[1770748986990,3.6844062,83.36,83.313,3.76093222]
[1770748987697,3.6844062,83.36,83.319,10.8077]
[1770748988192,3.68733871,83.36,83.319,10.8077]
[1770748988693,14.90736256,83.373,83.324,3.76093222]
[1770748989283,14.90736256,83.373,83.331,10.8062]
[1770748990490,4.10656256,83.373,83.331,10.8062]
[1770748990796,4.10656256,83.373,83.337,10.8054]
[1770748992493,3.68733871,83.38,83.318,11.09997675]
[1770748992494,4.10656256,83.364,83.32,10.8075]
[1770748992795,4.10656256,83.364,83.321,3.76093222]
[1770748992997,3.68733871,83.38,83.321,3.76093222]
[1770748993298,3.68733871,83.38,83.346,10.8042]
[1770748993492,7.79390127,83.38,83.346,10.8042]
[1770748993693,7.79390127,83.38,83.331,3.76093222]
[1770748994800,7.79390127,83.38,83.339,10.8051]
[1770748997299,4.10656256,83.377,83.339,10.8051]
[1770749000601,4.10656256,83.377,83.339,14.85973004]
[1770749000800,4.10656256,83.377,83.345,10.8044]
[1770749001003,3.68733871,83.38,83.345,10.8044]
[1770749001705,3.68733871,83.38,83.339,4.05463004]
[1770749002200,4.06071895,83.389,83.34,3.68733871]
[1770749002405,4.06071895,83.389,83.341,4.07587023]
[1770749002598,3.68733871,83.38,83.341,4.07587023]
[1770749003810,3.73349365,83.388,83.345,4.07587023]
[1770749004199,3.68733871,83.38,83.338,10.8053]
[1770749004402,3.73349365,83.379,83.339,4.07587023]
[1770749004701,3.68733871,83.39,83.339,4.07587023]
[1770749005304,7.42083236,83.39,83.339,4.07587023]
[1770749005711,7.42083236,83.39,83.347,10.8041]
[1770749006211,7.42083236,83.39,83.348,4.07587023]
[1770749007813,7.42083236,83.39,83.351,10.8036]
[1770749008207,3.68733871,83.38,83.348,4.07587023]
[1770749008510,3.73349365,83.379,83.332,4.07587023]
[1770749009712,3.68733871,83.38,83.333,10.8059]
[1770749009713,3.73349365,83.378,83.333,10.8059]